bitfinex/quotes_BTCUSD_20251202
["timestamp","ask_amount","ask_price","bid_price","bid_amount"]
[1764716533490,0.21752134,91945.0,91944.0,0.01716]
[1764716535080,0.21852134,91945.0,91944.0,0.01716]
[1764716537229,0.001,91945.0,91944.0,0.01716]
[1764716537435,0.001,91945.0,91944.0,0.29779371]
[1764716537625,0.001,91945.0,91944.0,0.34200371]
[1764716537826,0.001,91945.0,91944.0,0.34211952]
[1764716542070,0.001,91945.0,91944.0,0.37478173]
[1764716542271,0.2283758,91954.0,91951.0,0.21750701]
[1764716542272,0.21750252,91953.0,91951.0,0.21750701]
[1764716542482,0.21749743,91956.0,91953.0,0.21750193]
[1764716542679,0.21749743,91956.0,91954.0,0.01716]
[1764716542882,0.21749768,91955.0,91954.0,0.01716]
[1764716543102,0.21749743,91956.0,91954.0,0.01716]
[1764716543310,0.21749768,91955.0,91954.0,0.01716]
[1764716543947,0.21749743,91956.0,91954.0,0.01716]
[1764716544250,0.01087405,91962.0,91954.0,0.01716]
[1764716544251,0.21849768,91955.0,91954.0,0.01716]
[1764716545091,0.001,91955.0,91954.0,0.01716]
[1764716545377,0.21749768,91955.0,91954.0,0.01716]
[1764716545613,0.32159768,91955.0,91954.0,0.01716]
[1764716545827,0.21752134,91945.0,91944.0,0.00011581]
[1764716546020,0.28286734,91945.0,91944.0,0.00011581]
[1764716546235,0.66651734,91945.0,91944.0,0.00011581]
[1764716546864,0.64462134,91945.0,91944.0,0.00011581]
[1764716547063,0.66651734,91945.0,91944.0,0.00011581]
[1764716547315,0.66751734,91945.0,91944.0,0.00011581]
[1764716547466,0.67251734,91945.0,91944.0,0.00011581]
[1764716553811,0.65062134,91945.0,91944.0,0.00011581]
[1764716555522,0.67251734,91945.0,91944.0,0.00011581]
[1764716556991,0.65062134,91945.0,91944.0,0.00011581]
[1764716557752,0.64462134,91945.0,91944.0,0.00011581]
[1764716558159,0.65162134,91945.0,91944.0,0.00011581]
[1764716559240,0.64562134,91945.0,91944.0,0.00011581]
[1764716559537,0.64862134,91945.0,91944.0,0.00011581]
[1764716561451,0.004,91945.0,91944.0,0.00011581]
[1764716561605,0.004,91945.0,91944.0,0.32136952]
[1764716562421,0.22836575,91958.0,91953.0,0.01087512]
[1764716562630,0.21749595,91956.0,91954.0,0.03895825]
[1764716563025,0.21749768,91955.0,91954.0,0.03895825]
[1764716563823,0.31858768,91955.0,91954.0,0.01716]
[1764716564562,0.31958768,91955.0,91954.0,0.01716]
[1764716565137,0.31958768,91955.0,91944.0,0.00011581]
[1764716565138,0.21752134,91945.0,91944.0,0.00011581]
[1764716565338,0.25814134,91945.0,91944.0,0.01731581]
[1764716565577,0.31861134,91945.0,91944.0,0.01731581]
[1764716566445,0.31961134,91945.0,91944.0,0.01731581]
[1764716567076,0.32061134,91945.0,91944.0,0.01731581]
[1764716567434,0.002,91945.0,91944.0,0.12104581]
[1764716567662,0.002,91945.0,91944.0,0.33856952]
[1764716569620,0.002,91945.0,91944.0,0.73856952]
[1764716570582,0.002,91945.0,91944.0,0.41731581]
[1764716570741,0.002,91945.0,91944.0,0.01731581]
[1764716571146,0.32061134,91945.0,91944.0,0.01731581]
[1764716571378,0.002,91945.0,91944.0,0.01731581]
[1764716571610,0.002,91945.0,91944.0,0.33856952]
[1764716573986,0.002,91945.0,91944.0,0.27639952]
[1764716574348,0.002,91945.0,91944.0,0.33856952]
[1764716575187,0.002,91945.0,91944.0,0.45887581]
[1764716575397,0.002,91945.0,91944.0,0.01731581]
[1764716575677,0.002,91945.0,91944.0,0.23483952]
[1764716575806,0.002,91945.0,91944.0,0.01731581]
[1764716576002,0.21952134,91945.0,91944.0,0.01731581]
[1764716576545,0.26014134,91945.0,91944.0,0.01731581]
[1764716576854,0.32061134,91945.0,91944.0,0.01731581]
[1764716577464,0.002,91945.0,91944.0,0.01731581]
[1764716578543,0.002,91945.0,91944.0,0.23483952]
[1764716578942,0.002,91945.0,91944.0,0.01731581]
[1764716579489,0.002,91945.0,91944.0,0.23483952]
[1764716580068,0.002,91945.0,91944.0,0.01731581]
[1764716580822,0.002,91945.0,91944.0,0.23483952]
[1764716581016,0.002,91945.0,91944.0,0.01731581]
[1764716581625,0.002,91945.0,91944.0,0.23483952]
[1764716581908,0.002,91945.0,91944.0,0.33856952]
[1764716582383,0.002,91945.0,91944.0,0.73856952]
[1764716582504,0.002,91945.0,91944.0,1.29356352]
[1764716583327,0.001,91945.0,91944.0,1.20847352]
[1764716583576,0.001,91945.0,91944.0,0.65919952]
[1764716583785,0.001,91945.0,91944.0,0.7969173]
[1764716584005,0.001,91945.0,91944.0,0.63483952]
[1764716584202,0.31961134,91945.0,91944.0,0.01731581]
[1764716584401,0.31861134,91945.0,91944.0,0.01731581]
[1764716584610,0.31861134,91945.0,91944.0,0.01831581]
[1764716584784,0.31861134,91945.0,91944.0,0.00011581]
[1764716584987,0.21752134,91945.0,91944.0,0.00011581]
[1764716585191,0.31861134,91945.0,91944.0,0.00011581]
[1764716585569,0.31961134,91945.0,91944.0,0.00011581]
[1764716585770,0.32161134,91945.0,91944.0,0.00011581]
[1764716585979,0.34250734,91945.0,91944.0,0.00011581]
[1764716586175,0.36230559,91945.0,91944.0,0.00011581]
[1764716586377,0.68630559,91945.0,91944.0,0.00011581]
[1764716586979,0.31961134,91945.0,91944.0,0.00011581]
[1764716587418,0.32261134,91945.0,91944.0,0.00011581]
[1764716587621,0.32161134,91945.0,91944.0,0.00011581]
[1764716587821,0.31861134,91945.0,91944.0,0.00011581]
[1764716588025,0.32461134,91945.0,91944.0,0.00011581]
[1764716588426,0.31861134,91945.0,91944.0,0.00011581]
[1764716588829,0.32461134,91945.0,91944.0,0.00011581]
[1764716590303,0.34650734,91945.0,91944.0,0.00011581]
[1764716590642,0.26414134,91945.0,91944.0,0.00011581]
[1764716590844,0.32405134,91945.0,91944.0,0.00011581]
[1764716591490,0.26214134,91945.0,91944.0,0.00011581]
[1764716591702,0.004,91945.0,91944.0,0.09734581]
[1764716591909,0.005,91945.0,91944.0,0.09734581]
[1764716592107,0.001,91945.0,91944.0,0.09734581]
[1764716592494,0.002,91945.0,91944.0,0.09734581]
[1764716592659,0.002,91945.0,91944.0,0.63786952]
[1764716593483,0.22837515,91954.0,91947.0,0.01087583]
[1764716593685,0.01087571,91948.0,91945.0,0.02179825]
[1764716593909,0.01087512,91953.0,91946.0,0.0172]
[1764716594116,0.01087441,91959.0,91952.0,0.05296]
[1764716594319,0.22837466,91955.0,91952.0,0.01427]
[1764716594543,0.21750241,91953.0,91952.0,0.01427]
[1764716594771,0.010875,91954.0,91947.0,0.41087583]
[1764716594915,0.010875,91954.0,91948.0,0.22838993]
[1764716595116,0.22837264,91955.0,91953.0,0.05488]
[1764716595517,0.22937264,91955.0,91953.0,0.05488]
[1764716595723,0.01187488,91955.0,91953.0,0.05488]
[1764716595943,0.001,91955.0,91954.0,0.03869]
[1764716596568,0.001,91955.0,91954.0,0.31473005]
[1764716596765,0.2283575,91962.0,91957.0,0.01087464]
[1764716596971,0.0108737,91965.0,91962.0,0.05296]
[1764716597175,0.22834555,91966.0,91963.0,0.0172]
[1764716597416,0.2174764,91964.0,91963.0,0.0172]
[1764716597630,0.2553864,91964.0,91963.0,0.0172]
[1764716597798,0.3152964,91964.0,91963.0,0.0172]
[1764716598001,0.2553864,91964.0,91963.0,0.0172]
[1764716598206,0.01087299,91971.0,91963.0,0.12530393]
[1764716598404,0.01087299,91971.0,91969.0,0.02855]
[1764716598603,0.21746221,91970.0,91969.0,0.02855]
[1764716599007,0.21747167,91966.0,91965.0,0.02179825]
[1764716599574,0.21747167,91966.0,91963.0,0.0172]
[1764716599575,0.2174764,91964.0,91963.0,0.0172]
[1764716599777,0.3152964,91964.0,91963.0,0.0172]
[1764716600730,0.3172964,91964.0,91963.0,0.0172]
[1764716601092,0.3172964,91964.0,91949.0,0.01087559]
[1764716601093,0.21750785,91951.0,91948.0,0.21751424]
[1764716601313,0.01087523,91952.0,91949.0,0.0172]
[1764716601514,0.25541951,91950.0,91949.0,0.0172]
[1764716602438,0.22838017,91952.0,91949.0,0.0172]
[1764716602638,0.038945,91954.0,91949.0,0.0172]
[1764716602639,0.01087512,91953.0,91949.0,0.2455874]
[1764716602775,0.22836156,91960.0,91954.0,0.010875]
[1764716602979,0.01087429,91960.0,91952.0,0.01257918]
[1764716603177,0.22835827,91961.0,91959.0,0.02179825]
[1764716603178,0.22835769,91961.0,91959.0,0.02179825]
[1764716603397,0.21748586,91960.0,91959.0,0.0232991]
[1764716603813,0.0108737,91965.0,91959.0,0.0232991]
[1764716604014,0.0108737,91965.0,91959.0,0.02179825]
[1764716604015,0.001,91960.0,91959.0,0.02179825]
[1764716604431,0.2174837,91961.0,91959.0,0.02179825]
[1764716604629,0.001,91960.0,91959.0,0.23928647]
[1764716604833,0.002,91960.0,91959.0,0.23928647]
[1764716605033,0.002,91960.0,91959.0,0.27797647]
[1764716605482,0.002,91960.0,91959.0,0.33651647]
[1764716605882,0.001,91960.0,91959.0,0.33651647]
[1764716606089,0.0108737,91965.0,91960.0,0.22835903]
[1764716606304,0.01087346,91967.0,91959.0,0.33651647]
[1764716606305,0.01087311,91970.0,91961.0,0.0172]
[1764716606503,0.001,91961.0,91953.0,0.01087512]
[1764716606697,0.01087464,91957.0,91954.0,0.0172]
[1764716606857,0.01087417,91961.0,91955.0,0.01087488]
[1764716607081,0.01087405,91962.0,91960.0,0.06724]
[1764716607279,0.22835521,91962.0,91960.0,0.06724]
[1764716607501,0.001,91965.0,91961.0,0.31471113]
[1764716607698,0.01087334,91968.0,91964.0,0.03869]
[1764716607899,0.01087334,91968.0,91965.0,0.0172]
[1764716607900,0.22834055,91968.0,91965.0,0.0172]
[1764716608101,0.22834055,91968.0,91965.0,0.23467321]
[1764716608717,0.2283403,91968.0,91965.0,0.0172]
[1764716609129,0.01087334,91968.0,91965.0,0.0172]
[1764716609324,0.22834221,91969.0,91965.0,0.24554538]
[1764716609528,0.001,91968.0,91965.0,0.24554538]
[1764716609934,0.002,91968.0,91965.0,0.24554538]
[1764716610176,0.21746754,91968.0,91966.0,0.21747132]
[1764716610350,0.001,91968.0,91967.0,0.2174693]
[1764716610563,0.001,91968.0,91967.0,0.3146993]
[1764716611003,0.21745516,91973.0,91968.0,0.21746532]
[1764716611207,0.22832759,91974.0,91973.0,0.06724]
[1764716612272,0.22832759,91974.0,91973.0,0.02855]
[1764716612736,0.23132759,91974.0,91973.0,0.02855]
[1764716612960,0.23232759,91974.0,91973.0,0.02855]
[1764716613320,0.23232759,91974.0,91965.0,0.0172]
[1764716613321,0.21746944,91967.0,91965.0,0.0172]
[1764716613521,0.2283378,91969.0,91965.0,0.0172]
[1764716613693,0.2283378,91969.0,91966.0,0.21747143]
[1764716613894,0.01087322,91969.0,91967.0,0.217469]
[1764716614204,0.22833781,91969.0,91965.0,0.24554728]
[1764716614385,0.21746718,91968.0,91965.0,0.24554703]
[1764716614700,0.21746564,91969.0,91967.0,0.01214223]
[1764716614866,0.2283354,91970.0,91967.0,0.22834185]
[1764716615249,0.21746732,91968.0,91965.0,0.0280737]
[1764716615553,0.001,91967.0,91965.0,0.24554576]
[1764716615749,0.001,91967.0,91966.0,0.21747167]
[1764716615954,0.01087322,91969.0,91967.0,0.21746861]
[1764716616149,0.2303374,91970.0,91967.0,0.01087346]
[1764716616378,0.2303374,91970.0,91967.0,0.22834214]
[1764716616577,0.21746511,91969.0,91967.0,0.22834232]
[1764716617074,0.22833833,91969.0,91966.0,0.22834519]
[1764716617281,0.22833833,91969.0,91965.0,0.0280737]
[1764716617282,0.21746858,91968.0,91965.0,0.24554323]
[1764716617521,0.21746855,91968.0,91965.0,0.0172]
[1764716617703,0.21747137,91967.0,91965.0,0.0172]
[1764716617869,0.01087334,91968.0,91965.0,0.0172]
[1764716618399,0.22834069,91968.0,91965.0,0.0280737]
[1764716618582,0.2174693,91967.0,91965.0,0.0172]
[1764716618991,0.21747167,91966.0,91965.0,0.0172]
[1764716619220,0.30603167,91966.0,91965.0,0.0172]
[1764716619763,0.2174693,91967.0,91965.0,0.0172]
[1764716619911,0.30603167,91966.0,91965.0,0.0172]
[1764716620114,0.25412167,91966.0,91965.0,0.0172]
[1764716620481,0.30803167,91966.0,91965.0,0.01852678]
[1764716620877,0.25612167,91966.0,91965.0,0.01852678]
[1764716621121,0.002,91966.0,91965.0,0.11283678]
[1764716621320,0.002,91966.0,91965.0,0.33031081]
[1764716622085,0.001,91966.0,91965.0,0.33031081]
[1764716622309,0.01087299,91971.0,91967.0,0.21746829]
[1764716622582,0.22833376,91971.0,91968.0,0.21746687]
[1764716622917,0.22832791,91973.0,91970.0,0.2810922]
[1764716623123,0.21745825,91972.0,91970.0,0.2810922]
[1764716623329,0.21745985,91971.0,91970.0,0.06363]
[1764716623691,0.21845985,91971.0,91970.0,0.06363]
[1764716623896,0.21747167,91966.0,91962.0,0.05643]
[1764716624140,0.22833723,91970.0,91966.0,0.21747157]
[1764716624373,0.22833845,91969.0,91965.0,0.0172]
[1764716624594,0.002,91971.0,91969.0,0.03788]
[1764716624945,0.22833059,91972.0,91969.0,0.03788]
[1764716625272,0.002,91971.0,91969.0,0.03788]
[1764716625678,0.22833113,91972.0,91965.0,0.0172]
[1764716625679,0.01087322,91969.0,91965.0,0.0172]
[1764716625881,0.01087334,91968.0,91965.0,0.0172]
[1764716626081,0.21747163,91967.0,91965.0,0.0172]
[1764716626280,0.21747167,91966.0,91965.0,0.0172]
[1764716626432,0.2283403,91968.0,91965.0,0.0172]
[1764716626629,0.21746976,91967.0,91965.0,0.0172]
[1764716626828,0.21747167,91966.0,91965.0,0.0172]
[1764716628471,0.25412167,91966.0,91965.0,0.0172]
[1764716628753,0.21748586,91960.0,91958.0,0.2174903]
[1764716628948,0.21748421,91961.0,91959.0,0.0404991]
[1764716629373,0.0108737,91965.0,91960.0,0.21748521]
[1764716629575,0.23034738,91966.0,91962.0,0.2174805]
[1764716629776,0.23034738,91966.0,91965.0,0.02575]
[1764716629777,0.001,91966.0,91965.0,0.02575]
[1764716629997,0.01087334,91968.0,91965.0,0.02575]
[1764716630172,0.22834059,91968.0,91965.0,0.02575]
[1764716630386,0.217455,91974.0,91970.0,0.21746203]
[1764716630576,0.21745748,91972.0,91971.0,0.0172]
[1764716630777,0.21745748,91972.0,91971.0,0.04295]
[1764716631672,0.21745748,91972.0,91971.0,0.0172]
[1764716631874,0.25410748,91972.0,91971.0,0.0172]
[1764716632073,0.30601748,91972.0,91971.0,0.0172]
[1764716632274,0.30801748,91972.0,91971.0,0.0172]
[1764716632701,0.30901748,91972.0,91971.0,0.0172]
[1764716632905,0.25710748,91972.0,91971.0,0.0172]
[1764716633114,0.30901748,91972.0,91971.0,0.0172]
[1764716634718,0.30901748,91972.0,91971.0,0.08083]
[1764716634719,0.003,91972.0,91971.0,0.08083]
[1764716634965,0.003,91972.0,91971.0,0.13726]
[1764716635176,0.22045748,91972.0,91971.0,0.0172]
[1764716635360,0.30901748,91972.0,91971.0,0.0172]
[1764716638141,0.33091348,91972.0,91971.0,0.0172]
[1764716638388,0.30901748,91972.0,91971.0,0.0172]
[1764716638699,0.33091348,91972.0,91971.0,0.0172]
[1764716639365,0.32991348,91972.0,91971.0,0.0172]
[1764716639556,0.32791348,91972.0,91971.0,0.0172]
[1764716639758,0.30601748,91972.0,91971.0,0.0172]
[1764716639962,0.01087358,91966.0,91965.0,0.0172]
[1764716640169,0.22834525,91966.0,91965.0,0.0172]
[1764716640363,0.22834525,91966.0,91965.0,0.01852678]
[1764716640364,0.31690525,91966.0,91965.0,0.01852678]
[1764716641151,0.22834525,91966.0,91965.0,0.01852678]
[1764716641356,0.21746966,91967.0,91965.0,0.01852678]
[1764716641556,0.001,91966.0,91965.0,0.0172]
[1764716641761,0.22830379,91983.0,91975.0,0.01087251]
[1764716641958,0.01087074,91990.0,91984.0,0.01087145]
[1764716642159,0.22829094,91988.0,91984.0,0.22830056]
[1764716642361,0.22829094,91988.0,91985.0,0.02575]
[1764716642362,0.0108711,91987.0,91985.0,0.02575]
[1764716642560,0.22829094,91988.0,91985.0,0.02575]
[1764716642801,0.21741844,91989.0,91987.0,0.03788]
[1764716643005,0.2282893,91989.0,91988.0,0.05508]
[1764716643249,0.2282893,91989.0,91988.0,0.0172]
[1764716643455,0.2801993,91989.0,91988.0,0.0172]
[1764716643662,0.3168493,91989.0,91988.0,0.0172]
[1764716644889,0.3198493,91989.0,91988.0,0.0172]
[1764716645822,0.2312893,91989.0,91988.0,0.0172]
[1764716647750,0.3175593,91989.0,91988.0,0.0172]
[1764716648130,0.3175593,91989.0,91988.0,0.01785976]
[1764716648986,0.3394553,91989.0,91988.0,0.00065976]
[1764716649386,0.3175593,91989.0,91988.0,0.00065976]
[1764716650140,0.3155593,91989.0,91988.0,0.00065976]
[1764716650566,0.3185593,91989.0,91988.0,0.00065976]
[1764716651021,0.3175593,91989.0,91988.0,0.00065976]
[1764716651224,0.3195593,91989.0,91988.0,0.00065976]
[1764716651791,0.2332893,91989.0,91988.0,0.00065976]
[1764716652574,0.003,91989.0,91988.0,0.21807942]
[1764716652778,0.004,91989.0,91988.0,0.00065976]
[1764716653202,0.21841729,91989.0,91988.0,0.00065976]
[1764716653651,0.22041729,91989.0,91988.0,0.00065976]
[1764716654596,0.003,91989.0,91988.0,0.00065976]
[1764716655001,0.25305729,91989.0,91988.0,0.00065976]
[1764716655201,0.30668729,91989.0,91988.0,0.00065976]
[1764716657418,0.003,91989.0,91988.0,0.00065976]
[1764716658099,0.003,91989.0,91988.0,0.30730942]
[1764716658429,0.03799932,92002.0,91997.0,0.01086991]
[1764716658541,0.02713,92002.0,91998.0,0.0172]
[1764716658754,0.01086944,92001.0,91998.0,0.0172]
[1764716659171,0.22825917,92001.0,91998.0,0.0172]
[1764716659398,17.30064401,92000.0,91998.0,0.0172]
[1764716659746,17.08325168,92000.0,91998.0,0.0172]
[1764716660200,17.08325168,92000.0,91998.0,0.01731581]
[1764716660405,0.21739366,91999.0,91998.0,0.01731581]
[1764716661756,0.001,91999.0,91998.0,0.01731581]
[1764716661868,0.002,91999.0,91998.0,0.01731581]
[1764716665679,0.21939366,91999.0,91998.0,0.01731581]
[1764716666105,0.21939366,91999.0,91998.0,0.01768567]
[1764716668819,0.30566366,91999.0,91998.0,0.01768567]
[1764716670616,0.25203366,91999.0,91998.0,0.01768567]
[1764716671143,0.21939366,91999.0,91998.0,0.01768567]
[1764716674989,0.32193366,91999.0,91998.0,0.01768567]
[1764716676527,0.32193366,91999.0,91998.0,0.00048567]
[1764716676727,0.66682966,91999.0,91998.0,0.00048567]
[1764716679866,0.68862791,91999.0,91998.0,0.00048567]
[1764716680935,0.36562791,91999.0,91998.0,0.00048567]
[1764716681369,0.34373191,91999.0,91998.0,0.00048567]
[1764716681571,0.36362791,91999.0,91998.0,0.00048567]
[1764716681722,0.36962791,91999.0,91998.0,0.00048567]
[1764716684933,0.69262791,91999.0,91998.0,0.00048567]
[1764716688223,0.69262791,91999.0,91982.0,0.0172]
[1764716688224,0.21743148,91983.0,91982.0,0.0172]
[1764716688425,0.27323148,91983.0,91982.0,0.0172]
[1764716688604,0.32447148,91983.0,91982.0,0.0172]
[1764716689472,0.32647148,91983.0,91982.0,0.0172]
[1764716689676,0.01087441,91959.0,91955.0,0.05834778]
[1764716689892,0.01087441,91959.0,91953.0,0.01087512]
[1764716689893,0.2174952,91957.0,91953.0,0.01087512]
[1764716690099,0.22836759,91957.0,91956.0,0.01716]
[1764716691090,0.22936759,91957.0,91956.0,0.01716]
[1764716691317,0.22836759,91957.0,91956.0,0.01716]
[1764716691924,0.31120759,91957.0,91956.0,0.01716]
[1764716692571,0.31220759,91957.0,91956.0,0.01716]
[1764716693202,0.31120759,91957.0,91956.0,0.01716]
[1764716693410,0.33310359,91957.0,91956.0,0.01716]
[1764716693629,0.33410359,91957.0,91956.0,0.01716]
[1764716694048,0.33410359,91957.0,91932.0,0.02179825]
[1764716694049,0.01087784,91930.0,91927.0,0.02553]
[1764716694262,0.22843716,91929.0,91928.0,0.0172]
[1764716694491,0.2175483,91934.0,91928.0,0.0172]
[1764716694698,0.0108776,91932.0,91929.0,0.05711]
[1764716694904,0.22842977,91932.0,91931.0,0.02179825]
[1764716696149,0.22842977,91932.0,91931.0,0.52179825]
[1764716697317,0.22842784,91933.0,91931.0,0.52479825]
[1764716697533,0.2175521,91932.0,91931.0,0.52479825]
[1764716697737,0.01087736,91934.0,91931.0,0.52479825]
[1764716698339,0.2491521,91932.0,91931.0,0.503]
[1764716698766,0.3003921,91932.0,91931.0,0.503]
[1764716700253,0.3003921,91932.0,91931.0,0.50194343]
[1764716700785,0.2491521,91932.0,91931.0,0.50194343]
[1764716701195,0.2491521,91932.0,91931.0,0.50294343]
[1764716702243,0.0316,91932.0,91931.0,0.50294343]
[1764716702971,0.01087736,91934.0,91931.0,0.7204979]
[1764716703169,0.2175521,91932.0,91931.0,0.501]
[1764716703614,0.3003921,91932.0,91931.0,0.501]
[1764716703935,0.3003921,91932.0,91931.0,0.50294343]
[1764716705614,0.3222881,91932.0,91931.0,0.50294343]
[1764716706041,0.3232881,91932.0,91931.0,0.50294343]
[1764716706270,0.3013921,91932.0,91931.0,0.50194343]
[1764716707237,0.3232881,91932.0,91931.0,0.50194343]
[1764716707406,0.3242881,91932.0,91931.0,0.50194343]
[1764716708440,0.3023921,91932.0,91931.0,0.50194343]
[1764716708666,0.3242881,91932.0,91931.0,0.50194343]
[1764716709286,0.3023921,91932.0,91931.0,0.50194343]
[1764716712373,0.3242881,91932.0,91931.0,0.50194343]
[1764716713600,0.6472881,91932.0,91931.0,0.50194343]
[1764716713799,0.6472881,91932.0,91931.0,3.43e-06]
[1764716713951,0.6452881,91932.0,91931.0,3.43e-06]
[1764716714338,0.6492881,91932.0,91931.0,3.43e-06]
[1764716719590,0.67108635,91932.0,91931.0,3.43e-06]
[1764716723197,0.69451305,91932.0,91931.0,3.43e-06]
[1764716723975,0.69451305,91932.0,91909.0,0.06252299]
[1764716723976,0.21760417,91910.0,91909.0,0.06252299]
[1764716724149,0.26488417,91910.0,91909.0,0.06252299]
[1764716724380,0.31191417,91910.0,91909.0,0.06252299]
[1764716725911,0.21760654,91909.0,91908.0,0.0172]
[1764716726134,0.21760654,91909.0,91900.0,0.0004]
[1764716726135,0.21762548,91901.0,91900.0,0.0004]
[1764716726345,0.26828548,91901.0,91900.0,0.0004]
[1764716726495,0.31531548,91901.0,91900.0,0.0004]
[1764716727511,0.33721148,91901.0,91900.0,0.0034]
[1764716727732,0.33721148,91901.0,91900.0,0.0004]
[1764716728144,0.33721148,91901.0,91900.0,0.0024]
[1764716728352,0.66021148,91901.0,91900.0,0.0024]
[1764716728551,0.69290209,91901.0,91900.0,0.0024]
[1764716729150,0.69290209,91901.0,91900.0,0.0004]
[1764716729328,0.66021148,91901.0,91900.0,0.0004]
[1764716729545,0.66221148,91901.0,91900.0,0.0004]
[1764716729749,0.66421148,91901.0,91900.0,0.0004]
[1764716729932,0.66221148,91901.0,91900.0,0.0004]
[1764716730129,0.66321148,91901.0,91900.0,0.00129984]
[1764716730540,0.66221148,91901.0,91900.0,0.00129984]
[1764716730774,0.66521148,91901.0,91900.0,0.00129984]
[1764716731129,0.64331548,91901.0,91900.0,0.00129984]
[1764716732193,0.66021148,91901.0,91900.0,0.00129984]
[1764716732548,0.66321148,91901.0,91900.0,0.00129984]
[1764716734846,0.64131548,91901.0,91900.0,0.00129984]
[1764716735497,0.31831548,91901.0,91900.0,0.00129984]
[1764716735877,0.22062548,91901.0,91900.0,0.06382283]
[1764716736644,0.21962548,91901.0,91900.0,0.06382283]
[1764716736950,0.29829548,91901.0,91900.0,0.06382283]
[1764716738060,0.29929548,91901.0,91900.0,0.06382283]
[1764716738469,0.29829548,91901.0,91900.0,0.06382283]
[1764716738667,0.30129548,91901.0,91900.0,0.06382283]
[1764716738905,0.30329548,91901.0,91900.0,0.06382283]
[1764716739268,0.22262548,91901.0,91900.0,0.06382283]
[1764716739905,0.005,91901.0,91900.0,0.28145068]
[1764716741278,0.005,91901.0,91900.0,0.06382283]
[1764716741687,0.22262548,91901.0,91900.0,0.06382283]
[1764716742564,0.005,91901.0,91900.0,0.06382283]
[1764716742764,0.005,91901.0,91900.0,0.28145068]
[1764716743338,0.005,91901.0,91900.0,0.06382283]
[1764716743942,0.22262548,91901.0,91900.0,0.06382283]
[1764716744471,0.005,91901.0,91900.0,0.06382283]
[1764716744714,0.30329548,91901.0,91900.0,0.06382283]
[1764716745012,0.30329548,91901.0,91900.0,0.08102283]
[1764716747017,0.25512548,91901.0,91900.0,0.08102283]
[1764716747680,0.30329548,91901.0,91900.0,0.08102283]
[1764716748446,0.30329548,91901.0,91900.0,0.08140917]
[1764716750553,0.30329548,91901.0,91900.0,0.06420917]
[1764716752740,0.30329548,91901.0,91900.0,0.00168618]
[1764716758453,0.0375,91901.0,91900.0,0.06420917]
[1764716758757,0.005,91901.0,91900.0,0.06420917]
[1764716759048,0.22262548,91901.0,91900.0,0.06420917]
[1764716759285,0.005,91901.0,91900.0,0.06420917]
[1764716759418,0.22262548,91901.0,91900.0,0.06420917]
[1764716759619,0.005,91901.0,91900.0,0.06420917]
[1764716760627,0.005,91901.0,91900.0,0.28183702]
[1764716762763,0.005,91901.0,91900.0,0.31468702]
[1764716763100,0.005,91901.0,91900.0,0.36294702]
[1764716763520,0.005,91901.0,91900.0,1.39699202]
[1764716763714,0.003,91901.0,91900.0,1.452401]
[1764716763988,0.004,91901.0,91900.0,1.263389]
[1764716764164,0.004,91901.0,91900.0,1.58567302]
[1764716764369,0.003,91901.0,91900.0,1.58567302]
[1764716764591,0.22844818,91925.0,91921.0,0.29097962]
[1764716764794,0.2284443,91927.0,91925.0,0.06252299]
[1764716765354,0.01087807,91928.0,91925.0,0.07340142]
[1764716765554,0.21756184,91928.0,91925.0,0.29096787]
[1764716765764,0.01087796,91929.0,91927.0,0.06252299]
[1764716765961,0.01087796,91929.0,91926.0,0.21756558]
[1764716765962,0.21756168,91928.0,91926.0,0.06252299]
[1764716766327,0.22943975,91928.0,91926.0,0.06252299]
[1764716766535,0.001,91928.0,91927.0,0.28008692]
[1764716766685,0.21754985,91933.0,91930.0,0.06252299]
[1764716767417,0.02361,91934.0,91932.0,0.06252299]
[1764716767598,0.02361,91934.0,91933.0,0.06252299]
[1764716767758,0.02361,91934.0,91933.0,0.29727272]
[1764716768413,0.02361,91936.0,91935.0,0.28006799]
[1764716768588,0.02361,91936.0,91935.0,0.06252299]
[1764716768787,0.24115263,91936.0,91935.0,0.06252299]
[1764716769619,0.24315263,91936.0,91935.0,0.06252299]
[1764716769956,0.02561,91936.0,91935.0,0.06252299]
[1764716770145,0.02661,91936.0,91935.0,0.06252299]
[1764716770329,0.22054263,91936.0,91935.0,0.06252299]
[1764716770675,0.003,91936.0,91935.0,0.35564799]
[1764716770974,0.003,91936.0,91935.0,0.09268299]
[1764716771278,0.22054263,91936.0,91935.0,0.06252299]
[1764716771431,0.003,91936.0,91935.0,0.06252299]
[1764716771647,0.001,91936.0,91935.0,0.06252299]
[1764716772227,0.002,91936.0,91935.0,0.06252299]
[1764716772889,0.001,91936.0,91935.0,0.06252299]
[1764716773245,0.002,91936.0,91935.0,0.06252299]
[1764716774070,0.21954263,91936.0,91935.0,0.06252299]
[1764716774395,0.29939263,91936.0,91935.0,0.06252299]
[1764716775106,0.29739263,91936.0,91935.0,0.06252299]
[1764716775510,0.29939263,91936.0,91935.0,0.06252299]
[1764716775712,0.29839263,91936.0,91935.0,0.06252299]
[1764716775928,0.29739263,91936.0,91935.0,0.06252299]
[1764716776079,0.29839263,91936.0,91935.0,0.06252299]
[1764716776300,0.29939263,91936.0,91935.0,0.06252299]
[1764716776517,0.29939263,91936.0,91920.0,0.1463]
[1764716776518,0.21757103,91924.0,91921.0,0.06252299]
[1764716776702,0.30958103,91924.0,91923.0,0.07995515]
[1764716776902,0.22973103,91924.0,91923.0,0.07995515]
[1764716778083,0.22973103,91924.0,91923.0,0.08095515]
[1764716778084,0.30958103,91924.0,91923.0,0.08095515]
[1764716778200,0.31058103,91924.0,91923.0,0.08095515]
[1764716778806,0.30958103,91924.0,91923.0,0.07995515]
[1764716779054,0.31058103,91924.0,91923.0,0.07995515]
[1764716779251,0.31158103,91924.0,91923.0,0.07995515]
[1764716781154,0.09401,91924.0,91923.0,0.07995515]
[1764716781774,0.01416,91924.0,91923.0,0.07995515]
[1764716782887,0.002,91924.0,91923.0,0.29752855]
[1764716784077,0.002,91924.0,91923.0,0.07995515]
[1764716784275,0.25006103,91924.0,91923.0,0.07995515]
[1764716784479,0.29942103,91924.0,91923.0,0.07995515]
[1764716784887,0.29842103,91924.0,91923.0,0.07995515]
[1764716785478,0.29742103,91924.0,91923.0,0.07995515]
[1764716786122,0.29842103,91924.0,91923.0,0.07995515]
[1764716788052,0.29942103,91924.0,91923.0,0.07995515]
[1764716789306,0.002,91924.0,91923.0,0.07995515]
[1764716789812,0.002,91924.0,91923.0,0.29752855]